bitfinex/quotes_BTCUSD_20230904
["timestamp","ask_amount","ask_price","bid_price","bid_amount"]
[1693859871853,0.0197,25836.0,25835.0,1.19459588]
[1693859872059,0.0197,25836.0,25835.0,1.19465588]
[1693859872278,0.0197,25836.0,25835.0,1.19483588]
[1693859872455,0.0197,25836.0,25835.0,1.19543588]
[1693859872612,0.0197,25836.0,25835.0,1.19441588]
[1693859872817,0.0197,25836.0,25835.0,1.19453588]
[1693859873015,0.0197,25836.0,25835.0,1.19459588]
[1693859873220,0.0197,25836.0,25835.0,1.19465588]
[1693859873539,0.0197,25836.0,25835.0,1.19483588]
[1693859873865,0.0197,25836.0,25835.0,1.19381588]
[1693859874098,0.0197,25836.0,25835.0,1.19387588]
[1693859874297,0.0197,25836.0,25835.0,1.19375588]
[1693859874504,0.0197,25836.0,25835.0,1.19357588]
[1693859874692,0.0197,25836.0,25835.0,1.19369588]
[1693859874836,0.0197,25836.0,25835.0,1.19375588]
[1693859875039,0.0197,25836.0,25835.0,1.19381588]
[1693859875243,0.0197,25836.0,25835.0,1.19387588]
[1693859875455,0.0197,25836.0,25835.0,1.19399588]
[1693859875655,0.0197,25836.0,25835.0,1.19429588]
[1693859875852,0.0197,25836.0,25835.0,1.17435588]
[1693859876113,0.0197,25836.0,25835.0,1.19435588]
[1693859876453,0.0197,25836.0,25835.0,1.19255588]
[1693859876663,0.0197,25836.0,25835.0,1.19213588]
[1693859876812,0.0197,25836.0,25835.0,1.19207588]
[1693859877023,0.0197,25836.0,25835.0,1.19201588]
[1693859877218,0.0197,25836.0,25835.0,1.19135588]
[1693859877430,0.0197,25836.0,25835.0,1.19183588]
[1693859878016,0.0197,25836.0,25835.0,1.19177588]
[1693859878221,0.0197,25836.0,25835.0,1.19195588]
[1693859878449,0.0197,25836.0,25835.0,1.19165588]
[1693859878648,0.0197,25836.0,25835.0,1.19171588]
[1693859878862,0.0197,25836.0,25835.0,1.19165588]
[1693859879069,0.0197,25836.0,25835.0,1.19195588]
[1693859879223,0.0197,25836.0,25835.0,1.17267588]
[1693859879428,0.0197,25836.0,25835.0,1.19273588]
[1693859879620,0.0197,25836.0,25835.0,1.19171588]
[1693859879819,0.0197,25836.0,25835.0,1.19261588]
[1693859880032,0.0197,25836.0,25835.0,1.17249588]
[1693859880244,0.0197,25836.0,25835.0,1.17237588]
[1693859880448,0.0197,25836.0,25835.0,1.17159588]
[1693859880678,0.0197,25836.0,25835.0,1.17171588]
[1693859880920,0.0197,25836.0,25835.0,1.17147588]
[1693859881148,0.0197,25836.0,25835.0,1.17141588]
[1693859881355,0.0197,25836.0,25835.0,1.17135588]
[1693859881785,0.0197,25836.0,25835.0,1.17117588]
[1693859881994,0.0197,25836.0,25835.0,1.17111588]
[1693859882174,0.0197,25836.0,25835.0,1.17099588]
[1693859882402,0.0197,25836.0,25835.0,1.17057588]
[1693859882583,0.0197,25836.0,25835.0,1.17039588]
[1693859882739,0.0197,25836.0,25835.0,1.17027588]
[1693859882939,0.0197,25836.0,25835.0,1.17057588]
[1693859883151,0.0197,25836.0,25835.0,1.17051588]
[1693859883343,0.0197,25836.0,25835.0,1.17225588]
[1693859883583,0.0197,25836.0,25835.0,1.17249588]
[1693859883750,0.0197,25836.0,25835.0,1.17045588]
[1693859883950,0.0197,25836.0,25835.0,1.17069588]
[1693859884154,0.0197,25836.0,25835.0,1.17033588]
[1693859884356,0.0197,25836.0,25835.0,1.16985588]
[1693859884557,0.0197,25836.0,25835.0,1.16991588]
[1693859884799,0.0197,25836.0,25835.0,1.17003588]
[1693859885100,0.0197,25836.0,25835.0,1.17015588]
[1693859885299,0.0197,25836.0,25835.0,1.17075588]
[1693859885439,0.0197,25836.0,25835.0,1.16973588]
[1693859885843,0.0197,25836.0,25835.0,1.16967588]
[1693859886041,0.0197,25836.0,25835.0,1.16925588]
[1693859886461,0.0197,25836.0,25835.0,1.17069588]
[1693859886713,0.0197,25836.0,25835.0,1.17099588]
[1693859886932,0.0197,25836.0,25835.0,1.17171588]
[1693859887116,0.0197,25836.0,25835.0,1.17183588]
[1693859887432,0.0197,25836.0,25835.0,1.17189588]
[1693859887632,0.0197,25836.0,25835.0,1.17153588]
[1693859887764,0.0197,25836.0,25835.0,1.17165588]
[1693859887970,0.0197,25836.0,25835.0,1.17171588]
[1693859888318,0.0197,25836.0,25835.0,1.17273588]
[1693859888471,0.0197,25836.0,25835.0,1.17255588]
[1693859888651,0.0197,25836.0,25835.0,1.17279588]
[1693859889100,0.0197,25836.0,25835.0,1.17291588]
[1693859889299,0.0197,25836.0,25835.0,1.17297588]
[1693859889508,0.0197,25836.0,25835.0,1.17147588]
[1693859889885,0.0197,25836.0,25835.0,1.17159588]
[1693859890532,0.0197,25836.0,25835.0,1.17171588]
[1693859890764,0.0197,25836.0,25835.0,1.17183588]
[1693859890963,0.0197,25836.0,25835.0,1.17225588]
[1693859891201,0.0197,25836.0,25835.0,1.17357588]
[1693859891603,0.0197,25836.0,25835.0,1.17345588]
[1693859891739,0.0197,25836.0,25835.0,1.17357588]
[1693859891940,0.0197,25836.0,25835.0,1.17363588]
[1693859892181,0.0197,25836.0,25835.0,1.17369588]
[1693859892397,0.0197,25836.0,25835.0,1.17375588]
[1693859892595,0.0197,25836.0,25835.0,1.2662245]
[1693859892920,0.0197,25836.0,25835.0,1.2663445]
[1693859893115,0.0197,25836.0,25835.0,1.2664645]
[1693859893412,0.0197,25836.0,25835.0,1.2665245]
[1693859893614,0.0197,25836.0,25835.0,1.2665845]
[1693859893793,0.0197,25836.0,25835.0,1.40468743]
[1693859893950,0.0197,25836.0,25835.0,1.40486743]
[1693859894538,0.0197,25836.0,25835.0,1.40498743]
[1693859894740,0.0197,25836.0,25835.0,1.40510743]
[1693859894955,0.0197,25836.0,25835.0,1.40582743]
[1693859895143,0.0197,25836.0,25835.0,1.40534743]
[1693859895347,0.0197,25836.0,25835.0,1.40522743]
[1693859895498,0.0197,25836.0,25835.0,1.57304743]
[1693859895703,0.0197,25836.0,25835.0,1.56698743]
[1693859895929,0.0197,25836.0,25835.0,1.56686743]
[1693859896132,0.0197,25836.0,25835.0,1.56680743]
[1693859896340,0.0197,25836.0,25835.0,1.56866743]
[1693859896552,0.0197,25836.0,25835.0,1.56632743]
[1693859896751,0.0197,25836.0,25835.0,1.56650743]
[1693859896907,0.0197,25836.0,25835.0,1.56644743]
[1693859897107,0.0197,25836.0,25835.0,1.56632743]
[1693859897439,0.0197,25836.0,25835.0,1.56776743]
[1693859897645,0.0197,25836.0,25835.0,1.56788743]
[1693859897840,0.0197,25836.0,25835.0,1.56878743]
[1693859898042,0.0197,25836.0,25835.0,1.56866743]
[1693859898244,0.0197,25836.0,25835.0,1.56758743]
[1693859898458,0.0197,25836.0,25835.0,1.56740743]
[1693859898678,0.0197,25836.0,25835.0,1.56734743]
[1693859898947,0.0197,25836.0,25835.0,1.56728743]
[1693859899097,0.0197,25836.0,25835.0,1.56716743]
[1693859899283,0.0197,25836.0,25835.0,1.56722743]
[1693859899484,0.0197,25836.0,25835.0,1.56578743]
[1693859899687,0.0197,25836.0,25835.0,1.56458743]
[1693859899928,0.0197,25836.0,25835.0,1.56500743]
[1693859900144,0.0197,25836.0,25835.0,1.56410743]
[1693859900325,0.0197,25836.0,25835.0,1.56368743]
[1693859900691,0.0197,25836.0,25835.0,1.56422743]
[1693859900831,0.0197,25836.0,25835.0,1.56314743]
[1693859901027,0.0197,25836.0,25835.0,1.56338743]
[1693859901284,0.0197,25836.0,25835.0,1.56314743]
[1693859901468,0.0197,25836.0,25835.0,1.56308743]
[1693859901688,0.0197,25836.0,25835.0,1.58296743]
[1693859901888,0.0197,25836.0,25835.0,1.58278743]
[1693859902108,0.0197,25836.0,25835.0,1.58230743]
[1693859902299,0.0197,25836.0,25835.0,1.58200743]
[1693859902508,0.0197,25836.0,25835.0,1.58176743]
[1693859902711,0.0197,25836.0,25835.0,1.58170743]
[1693859903005,0.0197,25836.0,25835.0,1.58146743]
[1693859903233,0.0197,25836.0,25835.0,1.58074743]
[1693859903436,0.0197,25836.0,25835.0,1.57900743]
[1693859903615,0.0197,25836.0,25835.0,1.57918743]
[1693859903767,0.0197,25836.0,25835.0,1.57870743]
[1693859903976,0.0197,25836.0,25835.0,1.57948743]
[1693859904169,0.0197,25836.0,25835.0,1.57810743]
[1693859904573,0.0197,25836.0,25835.0,1.57996743]
[1693859904799,0.0197,25836.0,25835.0,1.57648743]
[1693859905000,0.0197,25836.0,25835.0,1.4385045]
[1693859905150,0.0197,25836.0,25835.0,1.16903204]
[1693859905361,0.0197,25836.0,25835.0,0.51053053]
[1693859905982,0.0197,25836.0,25835.0,0.41830191]
[1693859908751,0.0197,25836.0,25835.0,0.51053053]
[1693859909101,0.0197,25836.0,25835.0,0.41830191]
[1693859914888,0.0197,25836.0,25835.0,0.51053053]
[1693859915312,0.0197,25836.0,25835.0,0.41830191]
[1693859915692,0.0197,25836.0,25835.0,0.51053053]
[1693859916200,0.0197,25836.0,25835.0,0.41830191]
[1693859916631,0.0197,25836.0,25835.0,0.51053053]
[1693859916927,0.0197,25836.0,25835.0,0.41830191]
[1693859929775,0.0197,25836.0,25835.0,0.51053053]
[1693859930970,0.0197,25836.0,25835.0,0.41830191]
[1693859941487,0.0197,25836.0,25835.0,0.51119253]
[1693859942346,0.0197,25836.0,25835.0,0.41830191]
[1693859945667,0.0197,25836.0,25835.0,0.51119253]
[1693859945869,0.0197,25836.0,25835.0,0.41830191]
[1693859946590,0.0197,25836.0,25835.0,0.51119253]
[1693859946789,0.0197,25836.0,25835.0,0.41830191]
[1693859947219,0.0197,25836.0,25835.0,0.51119253]
[1693859966242,0.01870596,25836.0,25835.0,0.51119253]
[1693859982255,0.16270596,25836.0,25835.0,0.06831896]
[1693859983255,0.16270596,25836.0,25835.0,0.01831896]
[1693859983485,0.16270596,25836.0,25835.0,0.04331896]
[1693859983643,0.16270596,25836.0,25835.0,0.05]
[1693859983843,0.16270596,25836.0,25835.0,0.025]
[1693859984043,0.16270596,25836.0,25835.0,0.0392685]
[1693859984565,0.16270596,25836.0,25835.0,0.0622685]
[1693859995308,0.18270596,25836.0,25835.0,0.0622685]
[1693859995531,1.21790326,25836.0,25835.0,0.0622685]
[1693859998534,1.21790326,25836.0,25835.0,0.043]
[1693859999531,1.03681896,25836.0,25835.0,0.043]
[1693860001502,3.11569023,25836.0,25835.0,0.043]
[1693860002273,0.02,25833.0,25828.0,0.3]
[1693860002547,0.144,25829.0,25828.0,0.3]
[1693860002751,0.18884996,25829.0,25828.0,0.3]
[1693860002955,0.144,25829.0,25828.0,0.31852088]
[1693860004713,0.144,25829.0,25828.0,0.34352088]
[1693860005449,0.144,25829.0,25828.0,0.36852088]
[1693860005653,0.144,25829.0,25828.0,0.06852088]
[1693860007638,0.144,25829.0,25828.0,0.10738976]
[1693860018848,0.144,25829.0,25828.0,0.06852088]
[1693860022906,0.02,25831.0,25828.0,0.33859057]
[1693860023711,0.02,25831.0,25828.0,0.31359057]
[1693860024324,0.02,25831.0,25828.0,0.33859057]
[1693860026412,0.164,25831.0,25828.0,0.33859057]
[1693860026613,0.164,25831.0,25829.0,0.06587585]
[1693860027238,0.164,25831.0,25830.0,0.01685459]
[1693860028437,0.164,25831.0,25830.0,0.04185459]
[1693860029686,0.164,25831.0,25830.0,0.06685459]
[1693860037585,0.164,25831.0,25830.0,0.07946716]
[1693860037861,0.164,25831.0,25830.0,0.10327825]
[1693860053664,0.02,25834.0,25830.0,1.115262]
[1693860053871,0.02,25834.0,25831.0,0.15465811]
[1693860054097,0.02,25835.0,25831.0,0.24742599]
[1693860054303,0.02,25835.0,25831.0,0.39142599]
[1693860054505,0.02,25835.0,25832.0,0.02945831]
[1693860054715,0.01870596,25836.0,25832.0,0.02945831]
[1693860054920,0.01870596,25836.0,25833.0,0.77807126]
[1693860055147,0.01870596,25836.0,25835.0,0.144]
[1693860055350,0.01870596,25836.0,25835.0,0.53064527]
[1693860055557,0.01870596,25836.0,25835.0,0.90408527]
[1693860055791,0.01870596,25836.0,25835.0,0.89844527]
[1693860056000,0.01870596,25836.0,25835.0,0.90090527]
[1693860056218,0.01870596,25836.0,25835.0,1.18240133]
[1693860056423,0.01870596,25836.0,25835.0,1.18336133]
[1693860056623,0.01870596,25836.0,25835.0,1.23198133]
[1693860056848,0.01870596,25836.0,25835.0,1.23018133]
[1693860057053,0.01870596,25836.0,25835.0,1.23030133]
[1693860057269,0.01870596,25836.0,25835.0,1.22982133]
[1693860057471,0.01870596,25836.0,25835.0,1.23018133]
[1693860057683,0.01870596,25836.0,25835.0,1.23396133]
[1693860057959,0.01870596,25836.0,25835.0,1.23294133]
[1693860058170,0.01870596,25836.0,25835.0,1.23222133]
[1693860058367,0.01870596,25836.0,25835.0,1.23186133]
[1693860058591,0.01870596,25836.0,25835.0,1.23096133]
[1693860058799,0.01870596,25836.0,25835.0,0.96644527]
[1693860059007,0.01870596,25836.0,25835.0,1.23349227]
[1693860059208,0.01870596,25836.0,25835.0,0.96830527]
[1693860059413,0.01870596,25836.0,25835.0,0.96728527]
[1693860059611,0.01870596,25836.0,25835.0,1.24929965]
[1693860059820,9.6e-07,25836.0,25835.0,0.98990527]
[1693860060231,9.6e-07,25836.0,25835.0,0.99008527]
[1693860060445,9.6e-07,25836.0,25835.0,1.13280527]
[1693860060654,9.6e-07,25836.0,25835.0,1.15678527]
[1693860060875,9.6e-07,25836.0,25835.0,1.15660527]
[1693860061141,9.6e-07,25836.0,25835.0,1.39735634]
[1693860061355,9.6e-07,25836.0,25835.0,1.39717634]
[1693860061556,9.6e-07,25836.0,25835.0,1.41849634]
[1693860061780,9.6e-07,25836.0,25835.0,1.41963634]
[1693860062019,9.6e-07,25836.0,25835.0,1.41945634]
[1693860062281,9.6e-07,25836.0,25835.0,1.39433634]
[1693860062458,9.6e-07,25836.0,25835.0,1.15520527]
[1693860062661,9.6e-07,25836.0,25835.0,1.17972527]
[1693860062868,9.6e-07,25836.0,25835.0,2.29376649]
[1693860063079,9.6e-07,25836.0,25835.0,2.26990649]
[1693860063280,9.6e-07,25836.0,25835.0,2.30126889]
[1693860063631,9.6e-07,25836.0,25835.0,2.32692889]
[1693860063833,9.6e-07,25836.0,25835.0,2.32752889]
[1693860063961,9.6e-07,25836.0,25835.0,2.32740889]
[1693860064161,9.6e-07,25836.0,25835.0,2.32758889]
[1693860064367,9.6e-07,25836.0,25835.0,2.79008889]
[1693860064587,9.6e-07,25836.0,25835.0,3.00139677]
[1693860064785,9.6e-07,25836.0,25835.0,3.14671677]
[1693860064990,9.6e-07,25836.0,25835.0,3.16171677]
[1693860065208,9.6e-07,25836.0,25835.0,3.29810859]
[1693860065419,9.6e-07,25836.0,25835.0,3.27334859]
[1693860065631,9.6e-07,25836.0,25835.0,3.12851677]
[1693860065859,9.6e-07,25836.0,25835.0,3.15471677]
[1693860066066,9.6e-07,25836.0,25835.0,3.15459677]
[1693860066263,9.6e-07,25836.0,25835.0,3.17959677]
[1693860066476,9.6e-07,25836.0,25835.0,3.15423677]
[1693860066679,9.6e-07,25836.0,25835.0,3.15435677]
[1693860066881,9.6e-07,25836.0,25835.0,3.17923677]
[1693860067081,9.6e-07,25836.0,25835.0,3.17899677]
[1693860067326,9.6e-07,25836.0,25835.0,3.18019677]
[1693860067661,9.6e-07,25836.0,25835.0,3.17923677]
[1693860067859,9.6e-07,25836.0,25835.0,3.190856]
[1693860067983,9.6e-07,25836.0,25835.0,3.169936]
[1693860068189,9.6e-07,25836.0,25835.0,3.173056]
[1693860068411,9.6e-07,25836.0,25835.0,3.172336]
[1693860068613,9.6e-07,25836.0,25835.0,3.07872812]
[1693860068828,9.6e-07,25836.0,25835.0,3.10504812]
[1693860069241,9.6e-07,25836.0,25835.0,3.10480812]
[1693860069606,9.6e-07,25836.0,25835.0,3.07932812]
[1693860069811,9.6e-07,25836.0,25835.0,3.10396812]
[1693860070017,9.6e-07,25836.0,25835.0,3.12872812]
[1693860070251,9.6e-07,25836.0,25835.0,3.10348812]
[1693860070463,9.6e-07,25836.0,25835.0,4.32993731]
[1693860070672,9.6e-07,25836.0,25835.0,4.35505731]
[1693860070899,9.6e-07,25836.0,25835.0,4.36249731]
[1693860071103,9.6e-07,25836.0,25835.0,4.36417731]
[1693860071318,9.6e-07,25836.0,25835.0,4.33773731]
[1693860071523,9.6e-07,25836.0,25835.0,4.36333731]
[1693860071728,9.6e-07,25836.0,25835.0,4.36309731]
[1693860071927,9.6e-07,25836.0,25835.0,4.31345731]
[1693860072138,9.6e-07,25836.0,25835.0,4.43290519]
[1693860072324,9.6e-07,25836.0,25835.0,4.54636861]
[1693860072470,9.6e-07,25836.0,25835.0,4.36011285]
[1693860072696,9.6e-07,25836.0,25835.0,4.60350782]
[1693860072888,9.6e-07,25836.0,25835.0,4.57907411]
[1693860073293,9.6e-07,25836.0,25835.0,4.57931411]
[1693860073498,9.6e-07,25836.0,25835.0,4.62039411]
[1693860073703,9.6e-07,25836.0,25835.0,4.42345835]
[1693860073918,9.6e-07,25836.0,25835.0,4.42225835]
[1693860074122,9.6e-07,25836.0,25835.0,4.43785835]
[1693860074425,9.6e-07,25836.0,25835.0,4.43701835]
[1693860074627,9.6e-07,25836.0,25835.0,4.49819177]
[1693860074778,9.6e-07,25836.0,25835.0,4.52487177]
[1693860074988,9.6e-07,25836.0,25835.0,4.43389835]
[1693860075197,9.6e-07,25836.0,25835.0,4.43629835]
[1693860075375,9.6e-07,25836.0,25835.0,4.43605835]
[1693860075571,9.6e-07,25836.0,25835.0,4.64611835]
[1693860075779,9.6e-07,25836.0,25835.0,4.67131835]
[1693860075982,9.6e-07,25836.0,25835.0,4.67275835]
[1693860076186,9.6e-07,25836.0,25835.0,4.67167835]
[1693860076395,9.6e-07,25836.0,25835.0,4.67239835]
[1693860076594,9.6e-07,25836.0,25835.0,4.64775835]
[1693860076815,9.6e-07,25836.0,25835.0,4.63461835]
[1693860077051,9.6e-07,25836.0,25835.0,4.66195835]
[1693860077259,9.6e-07,25836.0,25835.0,4.66321835]
[1693860077455,9.6e-07,25836.0,25835.0,4.65889835]
[1693860077685,9.6e-07,25836.0,25835.0,4.74731096]
[1693860078037,9.6e-07,25836.0,25835.0,4.72771096]
[1693860078237,9.6e-07,25836.0,25835.0,4.72339096]
[1693860078449,9.6e-07,25836.0,25835.0,5.51040016]
[1693860078656,9.6e-07,25836.0,25835.0,5.52066016]
[1693860078855,9.6e-07,25836.0,25835.0,5.51940016]
[1693860079182,9.6e-07,25836.0,25835.0,5.50590016]
[1693860079384,9.6e-07,25836.0,25835.0,5.65971504]
[1693860079590,9.6e-07,25836.0,25835.0,5.47579928]
[1693860079744,9.6e-07,25836.0,25835.0,5.66205504]
[1693860079950,9.6e-07,25836.0,25835.0,5.47651928]
[1693860080306,9.6e-07,25836.0,25835.0,6.80136927]
[1693860080507,9.6e-07,25836.0,25835.0,6.83430808]
[1693860080732,9.6e-07,25836.0,25835.0,6.83610808]
[1693860080936,9.6e-07,25836.0,25835.0,6.82206808]
[1693860081140,9.6e-07,25836.0,25835.0,6.73674808]
[1693860081348,9.6e-07,25836.0,25835.0,6.44288808]
[1693860081553,9.6e-07,25836.0,25835.0,6.23036808]
[1693860081760,9.6e-07,25836.0,25835.0,6.43781722]
[1693860081973,9.6e-07,25836.0,25835.0,5.96317722]
[1693860082178,0.0197,25850.0,25849.0,0.06]
[1693860082394,0.0197,25850.0,25849.0,0.60130338]
[1693860082607,0.0197,25850.0,25849.0,1.85980587]
[1693860082816,0.0197,25850.0,25849.0,2.28819561]
[1693860083029,0.0197,25850.0,25849.0,2.28903561]
[1693860083244,0.0197,25853.0,25850.0,0.04]
[1693860083458,0.0197,25853.0,25852.0,0.144]
[1693860083664,0.0197,25853.0,25852.0,0.53064527]
[1693860083873,0.0197,25853.0,25852.0,0.38664527]
[1693860085021,0.0197,25853.0,25852.0,0.41164527]
[1693860085805,0.0197,25853.0,25852.0,0.43664527]
[1693860086762,0.0197,25853.0,25852.0,0.89707674]
[1693860086966,0.0197,25853.0,25852.0,0.90385674]
[1693860087223,0.0197,25853.0,25852.0,0.82513674]
[1693860087833,0.0197,25853.0,25852.0,0.82398264]
[1693860088618,0.0197,25855.0,25852.0,0.59949117]
[1693860088826,0.0197,25855.0,25854.0,1.11674527]
[1693860089027,0.0197,25859.0,25858.0,0.04]
[1693860089221,0.0197,25859.0,25858.0,0.74530338]
[1693860089496,0.0197,25859.0,25858.0,1.13814338]
[1693860089704,0.0197,25859.0,25858.0,1.21849069]
[1693860089907,0.0197,25859.0,25858.0,1.21885069]
[1693860090111,0.0197,25859.0,25858.0,1.23867069]
[1693860090295,0.0197,25859.0,25858.0,1.23879069]
[1693860090497,0.0197,25859.0,25858.0,1.24359069]
[1693860090639,0.0197,25859.0,25858.0,1.24389069]
[1693860091071,0.0197,25859.0,25858.0,1.24311069]
[1693860091275,0.0197,25861.0,25859.0,0.33552296]
[1693860091425,0.0197,25861.0,25859.0,1.18616823]
[1693860091625,0.0197,25861.0,25859.0,1.25894823]
[1693860091872,0.0197,25861.0,25859.0,1.25900823]
[1693860092140,0.0197,25861.0,25859.0,1.25906823]
[1693860092323,0.0197,25861.0,25859.0,1.26272823]
[1693860092552,0.0197,25861.0,25859.0,1.00076527]
[1693860092778,0.0197,25861.0,25859.0,1.02996527]
[1693860092988,0.0197,25861.0,25859.0,1.02954527]
[1693860093175,0.0197,25861.0,25859.0,1.03044527]
[1693860093395,0.182,25862.0,25860.0,0.85064527]
[1693860093601,0.182,25862.0,25860.0,0.94766527]
[1693860093803,0.182,25862.0,25861.0,0.07008]
[1693860093804,0.0196,25862.0,25861.0,0.07008]
[1693860094015,0.0196,25862.0,25861.0,0.40664527]
[1693860094214,0.0196,25862.0,25861.0,0.70664527]
[1693860095088,0.0198,25864.0,25863.0,0.06]
[1693860095310,0.003028,25864.0,25863.0,0.78530338]
[1693860095522,0.1624,25869.0,25865.0,0.06]
[1693860095736,0.1624,25869.0,25868.0,0.144]
[1693860096024,0.08,25873.0,25868.0,0.29865811]
[1693860096240,0.08,25873.0,25869.0,0.54130338]
[1693860096447,0.08,25874.0,25869.0,0.54130338]
[1693860096881,0.12484996,25874.0,25867.0,0.11572]
[1693860097091,0.144,25872.0,25868.0,0.68664527]
[1693860097710,0.224,25874.0,25869.0,0.29929405]
[1693860097922,0.224,25874.0,25869.0,0.47670747]
[1693860098127,0.08,25874.0,25870.0,0.38664527]
[1693860098327,0.08,25874.0,25870.0,0.54130338]
[1693860098750,0.08,25874.0,25870.0,0.38664527]
[1693860098751,0.224,25874.0,25870.0,0.38664527]
[1693860098960,0.1544,25875.0,25871.0,0.184]
[1693860099146,0.1544,25875.0,25872.0,0.38664527]
[1693860099536,0.1544,25875.0,25873.0,0.144]
[1693860099750,0.2514,25878.0,25874.0,0.38664527]
[1693860099940,0.2305,25878.0,25874.0,0.54130338]
[1693860100345,0.224,25878.0,25874.0,0.54130338]
[1693860100503,0.08,25878.0,25874.0,0.38664527]
[1693860100703,0.224,25878.0,25874.0,0.38664527]
[1693860101116,0.224,25878.0,25872.0,0.154579]
[1693860101117,0.26884996,25878.0,25872.0,0.154579]
[1693860101324,0.26884996,25878.0,25872.0,0.38664527]
[1693860101325,0.18884996,25877.0,25872.0,0.38664527]
[1693860101784,0.18884996,25877.0,25874.0,0.023]
[1693860101973,0.144,25877.0,25874.0,0.023]
[1693860102184,0.144,25877.0,25872.0,0.38664527]
[1693860102413,0.18884996,25877.0,25872.0,0.38664527]
[1693860102606,0.18884996,25877.0,25872.0,0.41164527]
[1693860102739,0.144,25877.0,25874.0,0.019]
[1693860102945,0.144,25877.0,25872.0,0.41164527]
[1693860103173,0.18884996,25877.0,25872.0,0.41164527]
[1693860103972,0.144,25877.0,25872.0,0.38664527]
[1693860104172,0.18884996,25877.0,25872.0,0.38664527]
[1693860104404,0.08,25875.0,25874.0,0.023]
[1693860104607,0.224,25875.0,25874.0,0.023]
[1693860105228,0.224,25875.0,25870.0,0.025]
[1693860105547,0.144,25873.0,25870.0,0.025]
[1693860105959,0.144,25873.0,25872.0,0.025]
[1693860107148,0.144,25873.0,25868.0,0.9892]
[1693860107368,0.18884996,25873.0,25868.0,1.37584527]
[1693860107569,0.18884996,25873.0,25870.0,0.05]
[1693860107775,0.144,25873.0,25870.0,0.05]
[1693860108144,0.144,25873.0,25868.0,0.9892]
[1693860108353,0.144,25870.0,25868.0,1.0392]
[1693860108602,0.144,25870.0,25868.0,1.0142]
[1693860108814,0.144,25870.0,25868.0,0.9892]
[1693860109443,0.144,25871.0,25868.0,1.0142]
[1693860109641,0.1537,25874.0,25870.0,0.28078271]
[1693860109642,0.144,25872.0,25870.0,0.28078271]
[1693860109859,0.144,25872.0,25868.0,1.0142]
[1693860110909,0.144,25872.0,25869.0,0.21171789]
[1693860111581,0.144,25872.0,25868.0,1.0392]
[1693860111811,0.144,25872.0,25868.0,1.0142]
[1693860112022,0.144,25872.0,25868.0,0.9892]
[1693860112231,0.144,25872.0,25869.0,0.025]
[1693860112443,0.144,25873.0,25869.0,0.025]
[1693860112858,0.144,25873.0,25869.0,0.24929561]
[1693860113068,0.144,25873.0,25870.0,0.02270273]
[1693860114380,0.144,25873.0,25869.0,0.025]
[1693860114587,0.144,25873.0,25867.0,0.36]
[1693860114798,0.04484996,25872.0,25870.0,0.025]
[1693860115041,0.144,25873.0,25870.0,0.05]
[1693860115245,0.144,25873.0,25870.0,0.025]
[1693860115660,0.144,25873.0,25869.0,0.025]
[1693860115867,0.144,25873.0,25867.0,0.74664527]
[1693860116073,0.18884996,25873.0,25867.0,0.74664527]
[1693860116278,0.18884996,25873.0,25867.0,0.90130338]
[1693860117093,0.18884996,25873.0,25870.0,0.025]
[1693860117294,0.144,25873.0,25870.0,0.025]
[1693860117474,0.144,25873.0,25868.0,0.3]
[1693860118294,0.144,25873.0,25870.0,0.025]
[1693860118486,0.144,25873.0,25868.0,0.3]
[1693860118719,0.18884996,25873.0,25868.0,0.325]
[1693860118894,0.18884996,25873.0,25868.0,0.35]
[1693860119348,0.144,25873.0,25868.0,0.35]
[1693860119563,0.18884996,25873.0,25868.0,0.35]
[1693860119973,0.144,25871.0,25868.0,0.35]
[1693860120611,0.144,25871.0,25868.0,0.325]
[1693860121029,0.144,25871.0,25870.0,0.025]
[1693860121235,0.144,25871.0,25868.0,0.325]
[1693860121654,0.144,25871.0,25868.0,0.05]
[1693860121655,0.144,25869.0,25868.0,0.05]
[1693860121859,0.144,25869.0,25864.0,0.9892]
[1693860122076,0.08,25871.0,25862.0,0.1994]
[1693860122077,0.04484996,25868.0,25862.0,0.1994]
[1693860122277,0.144,25863.0,25862.0,0.83704527]
[1693860122479,0.18884996,25863.0,25862.0,0.83704527]
[1693860122684,0.144,25863.0,25862.0,0.42664527]
[1693860123521,0.144,25865.0,25862.0,0.42664527]
[1693860124036,0.144,25865.0,25863.0,0.3]
[1693860125400,0.144,25865.0,25863.0,0.325]
[1693860126011,0.144,25864.0,25863.0,0.025]
[1693860126602,0.144,25864.0,25863.0,0.05]
[1693860126808,0.144,25864.0,25863.0,0.025]
[1693860127233,0.144,25864.0,25863.0,0.05]
[1693860127440,0.144,25864.0,25863.0,0.025]
[1693860127662,0.144,25864.0,25863.0,0.06767153]
[1693860128121,0.144,25864.0,25863.0,0.04267153]
[1693860128335,0.144,25864.0,25863.0,0.01767153]
[1693860128546,0.144,25864.0,25863.0,0.04267153]
[1693860128751,0.144,25864.0,25863.0,0.025]
[1693860128970,0.144,25864.0,25861.0,0.3]
[1693860129174,0.144,25862.0,25861.0,0.3]
[1693860130406,0.144,25862.0,25861.0,0.325]
[1693860131391,0.144,25862.0,25861.0,0.35]
[1693860132519,0.144,25862.0,25861.0,0.325]
[1693860132720,0.144,25862.0,25861.0,0.35]
[1693860142653,0.144,25862.0,25861.0,0.36781189]
[1693860151670,0.144,25862.0,25861.0,0.06781189]
[1693860165834,0.144,25862.0,25861.0,0.04281189]
[1693860166035,0.13,25862.0,25861.0,0.04281189]
[1693860166436,0.13,25862.0,25861.0,0.06781189]
[1693860166645,0.129,25862.0,25861.0,0.04281189]
[1693860167373,0.129,25862.0,25861.0,0.06781189]
[1693860184764,0.129,25862.0,25861.0,0.05803948]
[1693860185149,0.129,25862.0,25861.0,0.03303948]
[1693860185357,0.13,25862.0,25861.0,0.05803948]
[1693860185869,0.129,25862.0,25861.0,0.03303948]
[1693860186075,0.129,25862.0,25861.0,0.00803948]
[1693860186383,0.131,25862.0,25861.0,0.05]
[1693860186579,0.13,25862.0,25861.0,0.025]
[1693860186800,0.131,25862.0,25861.0,0.05]
[1693860187829,0.131,25862.0,25861.0,0.05803948]
[1693860189325,0.321,25862.0,25861.0,0.05803948]
[1693860193310,0.70764527,25862.0,25861.0,0.05803948]